[Event "Early-Titled-Tuesday-Blitz-February-06-2024"]
[Site "Chess.com"]
[Date "2024.02.06"]
[Round "5"]
[White "Elsa167"]
[Black "MattyDPerrine"]
[Result "1-0"]
[WhiteElo "2868"]
[BlackElo "2507"]
[TimeControl "180+1"]
[EndTime "8:54:27 PST"]
[Termination "Elsa167 won by resignation"]

1. e4 {[%clk 0:03:00.9]} 1... c6 {[%clk 0:02:55.8]} 2. d4 {[%clk 0:03:00.9]}
2... d5 {[%clk 0:02:51.8]} 3. Nc3 {[%clk 0:02:56]} 3... dxe4 {[%clk 0:02:51.1]}
4. Nxe4 {[%clk 0:02:56.9]} 4... Bf5 {[%clk 0:02:51.6]} 5. Ng3 {[%clk 0:02:56.3]}
5... Bg6 {[%clk 0:02:52]} 6. h4 {[%clk 0:02:56.8]} 6... h6 {[%clk 0:02:52.5]} 7.
h5 {[%clk 0:02:57.1]} 7... Bh7 {[%clk 0:02:52.9]} 8. Nf3 {[%clk 0:02:57.7]} 8...
e6 {[%clk 0:02:53]} 9. Bd3 {[%clk 0:02:58.1]} 9... Bxd3 {[%clk 0:02:53.2]} 10.
Qxd3 {[%clk 0:02:59]} 10... Nf6 {[%clk 0:02:53.5]} 11. Bd2 {[%clk 0:02:58.9]}
11... c5 {[%clk 0:02:51.1]} 12. O-O-O {[%clk 0:02:47.4]} 12... Nc6 {[%clk
0:02:41.7]} 13. Be3 {[%clk 0:02:31.1]} 13... cxd4 {[%clk 0:02:24.1]} 14. Nxd4
{[%clk 0:02:31]} 14... Nb4 {[%clk 0:02:19.6]} 15. Qb5+ {[%clk 0:02:26.2]} 15...
Qd7 {[%clk 0:02:19.5]} 16. Nxe6 {[%clk 0:01:34.8]} 16... Qxb5 {[%clk 0:02:09.8]}
17. Nc7+ {[%clk 0:01:35]} 17... Ke7 {[%clk 0:02:10.4]} 18. Nxb5 {[%clk
0:01:10.9]} 18... Nfd5 {[%clk 0:00:56.7]} 19. Rhe1 {[%clk 0:00:20]} 19... f6
{[%clk 0:00:29.9]} 20. a3 {[%clk 0:00:18.1]} 1-0

[Event "Early-Titled-Tuesday-Blitz-February-06-2024"]
[Site "Chess.com"]
[Date "2024.02.06"]
[Round "5"]
[White "casparov00000"]
[Black "valeriocarnicelli"]
[Result "0-1"]
[WhiteElo "2327"]
[BlackElo "2539"]
[TimeControl "180+1"]
[EndTime "8:54:27 PST"]
[Termination "valeriocarnicelli won by resignation"]

1. e4 {[%clk 0:03:00.1]} 1... c5 {[%clk 0:02:57.4]} 2. c3 {[%clk 0:03:00.1]}
2... d5 {[%clk 0:02:55.1]} 3. exd5 {[%clk 0:03:00.2]} 3... Nf6 {[%clk
0:02:55.7]} 4. d4 {[%clk 0:02:59.6]} 4... Qxd5 {[%clk 0:02:54.2]} 5. Nf3 {[%clk
0:02:59.4]} 5... a6 {[%clk 0:02:45.9]} 6. Na3 {[%clk 0:02:58.7]} 6... e6 {[%clk
0:02:40.5]} 7. Nc4 {[%clk 0:02:58.3]} 7... Qd8 {[%clk 0:02:38.5]} 8. Bg5 {[%clk
0:02:48.5]} 8... b5 {[%clk 0:02:34.3]} 9. Nce5 {[%clk 0:02:46.2]} 9... Bb7
{[%clk 0:02:33.2]} 10. a4 {[%clk 0:02:41.1]} 10... cxd4 {[%clk 0:02:28.3]} 11.
Nxd4 {[%clk 0:02:38.5]} 11... Bd6 {[%clk 0:02:23.4]} 12. Ng4 {[%clk 0:02:32.9]}
12... b4 {[%clk 0:02:06.4]} 13. Bc4 {[%clk 0:01:57.3]} 13... Be7 {[%clk
0:01:58.6]} 14. Ne5 {[%clk 0:01:37.1]} 14... Bxg2 {[%clk 0:01:52.6]} 15. Rg1
{[%clk 0:01:36.9]} 15... Bd5 {[%clk 0:01:52.7]} 16. Qe2 {[%clk 0:01:23.8]} 16...
O-O {[%clk 0:01:44]} 17. Bh6 {[%clk 0:01:19.6]} 17... g6 {[%clk 0:01:39.2]} 18.
Bxf8 {[%clk 0:01:19.3]} 18... Bxf8 {[%clk 0:01:39.8]} 19. Rg3 {[%clk 0:00:57.7]}
19... bxc3 {[%clk 0:01:38.5]} 20. bxc3 {[%clk 0:00:57.2]} 20... Bg7 {[%clk
0:01:35.2]} 21. Rd1 {[%clk 0:00:54.4]} 21... Qc7 {[%clk 0:01:33.8]} 22. Bxd5
{[%clk 0:00:44.2]} 22... Nxd5 {[%clk 0:01:33.5]} 23. Nc4 {[%clk 0:00:27.9]}
23... Nc6 {[%clk 0:01:27.3]} 24. Qe4 {[%clk 0:00:17.9]} 24... Nxd4 {[%clk
0:01:22.2]} 25. Rxd4 {[%clk 0:00:15.9]} 25... Bxd4 {[%clk 0:01:13.4]} 26. Qxd4
{[%clk 0:00:16.8]} 26... Rd8 {[%clk 0:01:12.8]} 27. Rf3 {[%clk 0:00:14]} 27...
Nb4 {[%clk 0:01:07.8]} 28. Qf4 {[%clk 0:00:10.6]} 28... Qxf4 {[%clk 0:01:06.7]}
29. Rxf4 {[%clk 0:00:11.1]} 29... Nd3+ {[%clk 0:01:07.4]} 30. Ke2 {[%clk
0:00:11.9]} 30... Nxf4+ {[%clk 0:01:08.1]} 31. Ke3 {[%clk 0:00:12.8]} 31... Nd5+
{[%clk 0:01:08.6]} 32. Ke4 {[%clk 0:00:13.1]} 32... Nxc3+ {[%clk 0:01:08.7]} 33.
Ke5 {[%clk 0:00:14]} 33... Nxa4 {[%clk 0:01:09.2]} 34. Nd6 {[%clk 0:00:14.1]}
34... Kf8 {[%clk 0:01:08]} 0-1

[Event "Early-Titled-Tuesday-Blitz-February-06-2024"]
[Site "Chess.com"]
[Date "2024.02.06"]
[Round "5"]
[White "adotand"]
[Black "wonderfultime"]
[Result "0-1"]
[WhiteElo "2893"]
[BlackElo "3051"]
[TimeControl "180+1"]
[EndTime "8:54:28 PST"]
[Termination "wonderfultime won by resignation"]

1. e4 {[%clk 0:03:00.9]} 1... e5 {[%clk 0:03:00]} 2. Nf3 {[%clk 0:03:01.1]} 2...
Nc6 {[%clk 0:03:00.6]} 3. Bb5 {[%clk 0:03:00.8]} 3... a6 {[%clk 0:03:00.6]} 4.
Ba4 {[%clk 0:03:01.4]} 4... Bc5 {[%clk 0:03:00.6]} 5. c3 {[%clk 0:03:00.2]} 5...
Nge7 {[%clk 0:03:01]} 6. O-O {[%clk 0:03:00.1]} 6... Ng6 {[%clk 0:03:01]} 7. d4
{[%clk 0:02:59.5]} 7... Ba7 {[%clk 0:03:01.7]} 8. Bg5 {[%clk 0:02:58]} 8... f6
{[%clk 0:03:01.8]} 9. Be3 {[%clk 0:02:58.5]} 9... O-O {[%clk 0:03:02.5]} 10. Re1
{[%clk 0:02:58.9]} 10... Kh8 {[%clk 0:03:01.2]} 11. Nbd2 {[%clk 0:02:55.7]}
11... d6 {[%clk 0:03:01.7]} 12. h3 {[%clk 0:02:55.5]} 12... exd4 {[%clk
0:03:01.8]} 13. cxd4 {[%clk 0:02:55.5]} 13... Nce7 {[%clk 0:03:02.2]} 14. Nf1
{[%clk 0:02:36.7]} 14... c6 {[%clk 0:02:49.2]} 15. Bb3 {[%clk 0:02:28.1]} 15...
d5 {[%clk 0:02:49.4]} 16. Ng3 {[%clk 0:02:27.7]} 16... Bb8 {[%clk 0:02:41.2]}
17. Bd2 {[%clk 0:02:19.5]} 17... a5 {[%clk 0:02:25.1]} 18. Qc2 {[%clk
0:02:15.5]} 18... Bxg3 {[%clk 0:02:12.3]} 19. fxg3 {[%clk 0:02:16.4]} 19... a4
{[%clk 0:02:12.9]} 20. Bxa4 {[%clk 0:02:08.8]} 20... dxe4 {[%clk 0:02:13.3]} 21.
Rxe4 {[%clk 0:02:09.3]} 21... Bf5 {[%clk 0:02:13.5]} 22. Bb3 {[%clk 0:02:09.7]}
22... Nd5 {[%clk 0:02:04.3]} 23. Rae1 {[%clk 0:02:07.1]} 23... Qd7 {[%clk
0:02:00.4]} 24. g4 {[%clk 0:02:01.3]} 24... Bxe4 {[%clk 0:01:58.3]} 25. Rxe4
{[%clk 0:02:00.8]} 25... Rae8 {[%clk 0:01:39.9]} 26. Rxe8 {[%clk 0:01:40.1]}
26... Rxe8 {[%clk 0:01:38.9]} 27. Qf5 {[%clk 0:01:40.1]} 27... Qxf5 {[%clk
0:01:27.1]} 28. gxf5 {[%clk 0:01:41]} 28... Ngf4 {[%clk 0:01:27.7]} 29. Kf1
{[%clk 0:01:37.9]} 29... Nd3 {[%clk 0:01:25.8]} 30. Ne1 {[%clk 0:01:31.3]} 30...
Nxe1 {[%clk 0:01:22.8]} 31. Bxe1 {[%clk 0:01:31.6]} 31... Ne3+ {[%clk
0:01:23.5]} 32. Kf2 {[%clk 0:01:31.8]} 32... Nxf5 {[%clk 0:01:22.6]} 33. Bc3
{[%clk 0:01:31.2]} 33... Rd8 {[%clk 0:01:22.6]} 34. d5 {[%clk 0:01:29.5]} 34...
cxd5 {[%clk 0:01:22.9]} 35. g4 {[%clk 0:01:29.9]} 35... Ne7 {[%clk 0:01:15.3]}
36. Ke3 {[%clk 0:01:27.3]} 36... Nc6 {[%clk 0:01:15.6]} 37. Kd3 {[%clk
0:01:25.2]} 37... Kg8 {[%clk 0:01:15.6]} 38. a4 {[%clk 0:01:24.9]} 38... Kf7
{[%clk 0:01:16.2]} 39. a5 {[%clk 0:01:25.2]} 39... Ke6 {[%clk 0:01:15.9]} 40.
Ba2 {[%clk 0:01:25.1]} 40... Ra8 {[%clk 0:01:09.7]} 41. b4 {[%clk 0:01:24.8]}
41... b6 {[%clk 0:01:08]} 42. Bb1 {[%clk 0:01:09.8]} 42... bxa5 {[%clk
0:01:07.3]} 43. b5 {[%clk 0:01:10.6]} 43... Rb8 {[%clk 0:00:56.2]} 44. Kd2
{[%clk 0:01:10.6]} 44... Rxb5 {[%clk 0:00:54.7]} 45. Bxh7 {[%clk 0:01:11.4]}
45... Ne5 {[%clk 0:00:52.5]} 46. Bf5+ {[%clk 0:01:09.9]} 46... Kd6 {[%clk
0:00:52.8]} 47. h4 {[%clk 0:01:10.6]} 47... d4 {[%clk 0:00:51.4]} 48. Bxd4
{[%clk 0:01:08.3]} 48... Nf3+ {[%clk 0:00:51.3]} 49. Kc3 {[%clk 0:01:08.1]}
49... Nxd4 {[%clk 0:00:51.9]} 50. Kxd4 {[%clk 0:01:09]} 50... a4 {[%clk
0:00:52.3]} 0-1

[Event "Early-Titled-Tuesday-Blitz-February-06-2024"]
[Site "Chess.com"]
[Date "2024.02.06"]
[Round "5"]
[White "DarZay"]
[Black "Happy1712Drummer"]
[Result "1-0"]
[WhiteElo "2268"]
[BlackElo "2396"]
[TimeControl "180+1"]
[EndTime "8:54:32 PST"]
[Termination "DarZay won by checkmate"]

1. e4 {[%clk 0:03:00.4]} 1... c5 {[%clk 0:02:59.2]} 2. Nf3 {[%clk 0:02:58.4]}
2... e6 {[%clk 0:02:59.6]} 3. d4 {[%clk 0:02:58.1]} 3... cxd4 {[%clk 0:03:00.3]}
4. Nxd4 {[%clk 0:02:58.4]} 4... Nf6 {[%clk 0:03:00.9]} 5. Nc3 {[%clk 0:02:58.2]}
5... Nc6 {[%clk 0:03:01.3]} 6. Ndb5 {[%clk 0:02:56.9]} 6... Bc5 {[%clk
0:03:01.4]} 7. Nd6+ {[%clk 0:02:56.3]} 7... Ke7 {[%clk 0:03:01]} 8. Nxc8+ {[%clk
0:02:56]} 8... Rxc8 {[%clk 0:02:59.5]} 9. Bd3 {[%clk 0:02:51.2]} 9... a6 {[%clk
0:02:55.9]} 10. O-O {[%clk 0:02:50.7]} 10... Qc7 {[%clk 0:02:55.7]} 11. Bg5
{[%clk 0:02:44]} 11... h6 {[%clk 0:02:50.5]} 12. Bxf6+ {[%clk 0:02:34.4]} 12...
gxf6 {[%clk 0:02:49.9]} 13. Qh5 {[%clk 0:02:33.7]} 13... Ba7 {[%clk 0:02:23.2]}
14. Kh1 {[%clk 0:02:31.1]} 14... Rhg8 {[%clk 0:01:47.4]} 15. f4 {[%clk 0:02:29]}
15... b5 {[%clk 0:01:36.4]} 16. Rae1 {[%clk 0:02:26.6]} 16... Rg6 {[%clk
0:01:25.7]} 17. Nd5+ {[%clk 0:02:17.9]} 17... exd5 {[%clk 0:01:15.9]} 18. exd5+
{[%clk 0:02:18]} 18... Kf8 {[%clk 0:01:11.9]} 19. Bxg6 {[%clk 0:02:15.6]} 19...
fxg6 {[%clk 0:01:05.2]} 20. Qxh6+ {[%clk 0:02:15.3]} 20... Kf7 {[%clk
0:00:58.6]} 21. Qh7+ {[%clk 0:02:14.7]} 21... Kf8 {[%clk 0:00:59]} 22. dxc6
{[%clk 0:01:40.3]} 22... dxc6 {[%clk 0:00:52.6]} 23. Qxg6 {[%clk 0:01:37.7]}
23... Qg7 {[%clk 0:00:48.6]} 24. Qf5 {[%clk 0:01:34.2]} 24... Rc7 {[%clk
0:00:46]} 25. Re6 {[%clk 0:01:28.8]} 25... Kf7 {[%clk 0:00:27.7]} 26. Rfe1
{[%clk 0:01:24.3]} 26... Qh6 {[%clk 0:00:19.2]} 27. Qe4 {[%clk 0:01:13.3]} 27...
Bc5 {[%clk 0:00:08.7]} 28. Rxc6 {[%clk 0:01:03.8]} 28... Rxc6 {[%clk 0:00:05.7]}
29. Qxc6 {[%clk 0:01:02.6]} 29... Bf2 {[%clk 0:00:04.4]} 30. Qe8+ {[%clk
0:00:57.7]} 30... Kg7 {[%clk 0:00:04.7]} 31. Re7# {[%clk 0:00:56.8]} 1-0

[Event "Early-Titled-Tuesday-Blitz-February-06-2024"]
[Site "Chess.com"]
[Date "2024.02.06"]
[Round "5"]
[White "Aslanov_Umid"]
[Black "mitrabhaa"]
[Result "0-1"]
[WhiteElo "2674"]
[BlackElo "2911"]
[TimeControl "180+1"]
[EndTime "8:54:33 PST"]
[Termination "mitrabhaa won by resignation"]

1. e4 {[%clk 0:02:57.8]} 1... a6 {[%clk 0:02:54.7]} 2. Nf3 {[%clk 0:02:53.9]}
2... e6 {[%clk 0:02:53.6]} 3. d4 {[%clk 0:02:54.3]} 3... d5 {[%clk 0:02:53.1]}
4. exd5 {[%clk 0:02:54.5]} 4... exd5 {[%clk 0:02:53.2]} 5. Bd3 {[%clk
0:02:55.1]} 5... Bd6 {[%clk 0:02:53.7]} 6. h3 {[%clk 0:02:54.9]} 6... Ne7 {[%clk
0:02:54.2]} 7. O-O {[%clk 0:02:54.9]} 7... O-O {[%clk 0:02:54.8]} 8. Re1 {[%clk
0:02:52.5]} 8... Nbc6 {[%clk 0:02:55.2]} 9. c4 {[%clk 0:02:36.8]} 9... dxc4
{[%clk 0:02:54]} 10. Bxc4 {[%clk 0:02:37.1]} 10... Bf5 {[%clk 0:02:52.7]} 11.
Nc3 {[%clk 0:02:33.3]} 11... Qd7 {[%clk 0:02:48]} 12. Bg5 {[%clk 0:02:15.2]}
12... Ng6 {[%clk 0:02:44.1]} 13. Ne4 {[%clk 0:02:00.6]} 13... Rae8 {[%clk
0:02:36.9]} 14. Nxd6 {[%clk 0:01:59.3]} 14... Qxd6 {[%clk 0:02:36.8]} 15. Qd2
{[%clk 0:01:51.9]} 15... Be4 {[%clk 0:02:35.2]} 16. Ne5 {[%clk 0:01:31.4]} 16...
Ncxe5 {[%clk 0:02:17.1]} 17. dxe5 {[%clk 0:01:30.1]} 17... Qxe5 {[%clk
0:02:16.9]} 18. Bd3 {[%clk 0:01:09.8]} 18... Qf5 {[%clk 0:02:06.2]} 19. Rxe4
{[%clk 0:00:44.3]} 19... Rxe4 {[%clk 0:02:07.1]} 20. Qc2 {[%clk 0:00:29.9]}
20... Qxg5 {[%clk 0:01:45.9]} 21. Bxe4 {[%clk 0:00:29.9]} 21... c6 {[%clk
0:01:46.4]} 22. Qb3 {[%clk 0:00:28.2]} 22... Qe7 {[%clk 0:01:35.7]} 23. Bxg6
{[%clk 0:00:25.4]} 23... hxg6 {[%clk 0:01:35.5]} 24. Rd1 {[%clk 0:00:25.8]}
24... Re8 {[%clk 0:01:34.6]} 25. g3 {[%clk 0:00:19.2]} 25... Qc7 {[%clk
0:01:31.9]} 26. Rd3 {[%clk 0:00:16.9]} 26... c5 {[%clk 0:01:31]} 27. Qd5 {[%clk
0:00:16.9]} 27... b5 {[%clk 0:01:29.9]} 28. Kg2 {[%clk 0:00:13.8]} 28... c4
{[%clk 0:01:29.6]} 29. Rf3 {[%clk 0:00:14.4]} 29... Re6 {[%clk 0:01:26.3]} 30.
h4 {[%clk 0:00:14.4]} 30... Qe7 {[%clk 0:01:18.8]} 31. h5 {[%clk 0:00:13.2]}
31... gxh5 {[%clk 0:01:18.6]} 32. Qxh5 {[%clk 0:00:12.2]} 32... Qb7 {[%clk
0:01:15.3]} 33. Qf5 {[%clk 0:00:11]} 33... Rf6 {[%clk 0:01:13.3]} 34. Qg4 {[%clk
0:00:10.6]} 34... b4 {[%clk 0:01:08.6]} 0-1

[Event "Early-Titled-Tuesday-Blitz-February-06-2024"]
[Site "Chess.com"]
[Date "2024.02.06"]
[Round "5"]
[White "Savagelittlemole"]
[Black "kai_nov"]
[Result "1-0"]
[WhiteElo "2493"]
[BlackElo "2296"]
[TimeControl "180+1"]
[EndTime "8:54:34 PST"]
[Termination "Savagelittlemole won on time"]

1. e4 {[%clk 0:02:59.5]} 1... c5 {[%clk 0:01:56.3]} 2. Ne2 {[%clk 0:02:57.8]}
2... Nc6 {[%clk 0:01:52.9]} 3. g3 {[%clk 0:02:58.2]} 3... e6 {[%clk 0:01:50.4]}
4. Bg2 {[%clk 0:02:58.8]} 4... d5 {[%clk 0:01:48.5]} 5. exd5 {[%clk 0:02:58.8]}
5... exd5 {[%clk 0:01:47.8]} 6. d4 {[%clk 0:02:59.5]} 6... c4 {[%clk 0:01:46.9]}
7. O-O {[%clk 0:02:59.1]} 7... Nf6 {[%clk 0:01:45.3]} 8. b3 {[%clk 0:02:58.9]}
8... cxb3 {[%clk 0:01:42.8]} 9. axb3 {[%clk 0:02:59.8]} 9... Be6 {[%clk
0:01:41.8]} 10. Nf4 {[%clk 0:02:58]} 10... Qd7 {[%clk 0:01:38]} 11. Nxe6 {[%clk
0:02:54.6]} 11... fxe6 {[%clk 0:01:37.4]} 12. Re1 {[%clk 0:02:54]} 12... Bb4
{[%clk 0:01:29.4]} 13. c3 {[%clk 0:02:47.5]} 13... Bd6 {[%clk 0:01:22.5]} 14.
Bh3 {[%clk 0:02:47.8]} 14... Nd8 {[%clk 0:01:18]} 15. c4 {[%clk 0:02:25.6]}
15... dxc4 {[%clk 0:01:06.7]} 16. d5 {[%clk 0:02:24.1]} 16... O-O {[%clk
0:01:02.6]} 17. dxe6 {[%clk 0:02:19.6]} 17... Qe7 {[%clk 0:01:02.7]} 18. bxc4
{[%clk 0:02:13.8]} 18... Nc6 {[%clk 0:00:57.9]} 19. Ba3 {[%clk 0:02:08]} 19...
Bxa3 {[%clk 0:00:56.7]} 20. Nxa3 {[%clk 0:02:08.9]} 20... Rad8 {[%clk
0:00:55.6]} 21. Qa4 {[%clk 0:02:03.1]} 21... Nd4 {[%clk 0:00:52.4]} 22. Bg2
{[%clk 0:01:59.7]} 22... Nxe6 {[%clk 0:00:44.2]} 23. Nb5 {[%clk 0:01:45.6]}
23... a6 {[%clk 0:00:42.1]} 24. Nc3 {[%clk 0:01:40]} 24... Qf7 {[%clk
0:00:37.5]} 25. Nd5 {[%clk 0:01:33.2]} 25... Nxd5 {[%clk 0:00:31.7]} 26. cxd5
{[%clk 0:01:27.2]} 26... Qxf2+ {[%clk 0:00:29.7]} 27. Kh1 {[%clk 0:01:27.5]}
27... Ng5 {[%clk 0:00:28]} 28. Rf1 {[%clk 0:01:22.7]} 28... Qe2 {[%clk
0:00:17.4]} 29. Rxf8+ {[%clk 0:01:21.7]} 29... Rxf8 {[%clk 0:00:17.2]} 30. Qb3
{[%clk 0:00:55.6]} 1-0

[Event "Early-Titled-Tuesday-Blitz-February-06-2024"]
[Site "Chess.com"]
[Date "2024.02.06"]
[Round "5"]
[White "sonicdravise"]
[Black "AccioChess"]
[Result "1-0"]
[WhiteElo "2620"]
[BlackElo "2443"]
[TimeControl "180+1"]
[EndTime "8:54:35 PST"]
[Termination "sonicdravise won on time"]

1. d4 {[%clk 0:03:00.9]} 1... Nf6 {[%clk 0:02:59.2]} 2. c4 {[%clk 0:03:01.5]}
2... c5 {[%clk 0:02:56.9]} 3. d5 {[%clk 0:03:00.7]} 3... b5 {[%clk 0:02:57]} 4.
cxb5 {[%clk 0:03:01]} 4... a6 {[%clk 0:02:57.3]} 5. bxa6 {[%clk 0:03:01.5]} 5...
g6 {[%clk 0:02:57.7]} 6. Nc3 {[%clk 0:02:59.3]} 6... Bxa6 {[%clk 0:02:57.3]} 7.
Nf3 {[%clk 0:02:59.1]} 7... Bg7 {[%clk 0:02:55.6]} 8. g3 {[%clk 0:02:59.5]} 8...
O-O {[%clk 0:02:54.3]} 9. Bg2 {[%clk 0:02:59.8]} 9... d6 {[%clk 0:02:54.6]} 10.
Rb1 {[%clk 0:02:59.6]} 10... Nbd7 {[%clk 0:02:44.9]} 11. O-O {[%clk 0:02:59.5]}
11... Nb6 {[%clk 0:02:11.6]} 12. b3 {[%clk 0:02:56.1]} 12... Bb7 {[%clk
0:02:02.2]} 13. Nh4 {[%clk 0:02:56.3]} 13... Ra6 {[%clk 0:01:05.1]} 14. e4
{[%clk 0:02:46.4]} 14... Qa8 {[%clk 0:01:03.7]} 15. Bb2 {[%clk 0:02:31.8]} 15...
Nfd7 {[%clk 0:00:50.7]} 16. Re1 {[%clk 0:02:23.6]} 16... Rc8 {[%clk 0:00:44.6]}
17. Bf1 {[%clk 0:02:13.8]} 17... c4 {[%clk 0:00:44.5]} 18. b4 {[%clk 0:02:07.3]}
18... Na4 {[%clk 0:00:38.4]} 19. Nxa4 {[%clk 0:02:06.4]} 19... Rxa4 {[%clk
0:00:39.3]} 20. Bxg7 {[%clk 0:02:04.6]} 20... Kxg7 {[%clk 0:00:40.2]} 21. Qd4+
{[%clk 0:02:02.7]} 21... Kg8 {[%clk 0:00:32.2]} 22. Bxc4 {[%clk 0:01:56.5]}
22... Ne5 {[%clk 0:00:18.9]} 23. Bb3 {[%clk 0:01:55.4]} 23... g5 {[%clk
0:00:18.1]} 24. Bxa4 {[%clk 0:01:34.3]} 24... Qxa4 {[%clk 0:00:12.8]} 25. f4
{[%clk 0:01:32.8]} 25... Rc4 {[%clk 0:00:02]} 26. Qb6 {[%clk 0:01:10.9]} 26...
gxh4 {[%clk 0:00:01.6]} 27. fxe5 {[%clk 0:01:07.2]} 27... Bc8 {[%clk 0:00:02.5]}
28. Qd8+ {[%clk 0:01:06.3]} 28... Kg7 {[%clk 0:00:02.8]} 29. Qxe7 {[%clk
0:01:06]} 29... Qxa2 {[%clk 0:00:02.2]} 30. Rf1 {[%clk 0:01:02.4]} 1-0

[Event "Early-Titled-Tuesday-Blitz-February-06-2024"]
[Site "Chess.com"]
[Date "2024.02.06"]
[Round "5"]
[White "SargissyanSargis"]
[Black "Squirlolz"]
[Result "0-1"]
[WhiteElo "2404"]
[BlackElo "2568"]
[TimeControl "180+1"]
[EndTime "8:54:35 PST"]
[Termination "Squirlolz won on time"]

1. e4 {[%clk 0:02:39.1]} 1... d6 {[%clk 0:02:58.9]} 2. d4 {[%clk 0:02:38.9]}
2... Nf6 {[%clk 0:02:59.6]} 3. Nc3 {[%clk 0:02:39.4]} 3... c6 {[%clk 0:03:00.4]}
4. Bg5 {[%clk 0:02:36.5]} 4... Qb6 {[%clk 0:02:59.6]} 5. Qd2 {[%clk 0:02:34.5]}
5... Qxb2 {[%clk 0:02:59.2]} 6. Rb1 {[%clk 0:02:34.5]} 6... Qa3 {[%clk
0:02:59.9]} 7. Nf3 {[%clk 0:02:29.4]} 7... e6 {[%clk 0:02:55.1]} 8. Bd3 {[%clk
0:02:23.1]} 8... Be7 {[%clk 0:02:53.9]} 9. e5 {[%clk 0:02:06.7]} 9... dxe5
{[%clk 0:02:50.8]} 10. dxe5 {[%clk 0:02:07.2]} 10... Nd5 {[%clk 0:02:50.6]} 11.
Ne4 {[%clk 0:02:05.1]} 11... Bxg5 {[%clk 0:02:41.4]} 12. Qxg5 {[%clk 0:01:57.4]}
12... Qa5+ {[%clk 0:02:02.2]} 13. Kf1 {[%clk 0:01:42.8]} 13... O-O {[%clk
0:02:02]} 14. Rb5 {[%clk 0:00:51.3]} 14... Qd8 {[%clk 0:01:21.4]} 15. Qh5 {[%clk
0:00:14.1]} 15... cxb5 {[%clk 0:00:59.3]} 16. Nfg5 {[%clk 0:00:05]} 16... h6
{[%clk 0:00:53.8]} 17. g3 {[%clk 0:00:02.7]} 17... Nd7 {[%clk 0:00:39.4]} 18.
Nh7 {[%clk 0:00:02]} 18... Kxh7 {[%clk 0:00:29.8]} 19. Nf6+ {[%clk 0:00:01.2]}
19... Kh8 {[%clk 0:00:29.1]} 0-1

[Event "Early-Titled-Tuesday-Blitz-February-06-2024"]
[Site "Chess.com"]
[Date "2024.02.06"]
[Round "5"]
[White "snowlord"]
[Black "SahibSinghKnight"]
[Result "1-0"]
[WhiteElo "2868"]
[BlackElo "2652"]
[TimeControl "180+1"]
[EndTime "8:54:37 PST"]
[Termination "snowlord won by resignation"]

1. e4 {[%clk 0:02:59]} 1... e6 {[%clk 0:02:58.9]} 2. d4 {[%clk 0:02:56.6]} 2...
d5 {[%clk 0:02:59.5]} 3. Bd3 {[%clk 0:02:54.6]} 3... dxe4 {[%clk 0:02:58.8]} 4.
Bxe4 {[%clk 0:02:55.5]} 4... Nf6 {[%clk 0:02:58.8]} 5. Bf3 {[%clk 0:02:55.8]}
5... Bd6 {[%clk 0:02:57.6]} 6. Nd2 {[%clk 0:02:53.3]} 6... O-O {[%clk
0:02:55.9]} 7. Nc4 {[%clk 0:02:53.5]} 7... Nbd7 {[%clk 0:02:55]} 8. Ne2 {[%clk
0:02:48.1]} 8... e5 {[%clk 0:02:47.6]} 9. g3 {[%clk 0:02:36.3]} 9... Re8 {[%clk
0:02:35.7]} 10. O-O {[%clk 0:02:35.2]} 10... e4 {[%clk 0:02:35.2]} 11. Nxd6
{[%clk 0:02:31.4]} 11... cxd6 {[%clk 0:02:25.2]} 12. Bg2 {[%clk 0:02:31.2]}
12... b6 {[%clk 0:02:23]} 13. Re1 {[%clk 0:02:13.8]} 13... Bb7 {[%clk
0:02:17.6]} 14. a4 {[%clk 0:02:12.1]} 14... Rc8 {[%clk 0:02:16.3]} 15. Ra3
{[%clk 0:02:10.5]} 15... d5 {[%clk 0:01:56.4]} 16. a5 {[%clk 0:02:07.9]} 16...
b5 {[%clk 0:01:54.2]} 17. a6 {[%clk 0:02:07.4]} 17... Ba8 {[%clk 0:01:51.8]} 18.
Bd2 {[%clk 0:02:01.6]} 18... Qb6 {[%clk 0:01:50.3]} 19. Bb4 {[%clk 0:02:01.7]}
19... Rc4 {[%clk 0:01:49]} 20. c3 {[%clk 0:02:01.4]} 20... e3 {[%clk 0:01:47.1]}
21. fxe3 {[%clk 0:01:55.9]} 21... Rxe3 {[%clk 0:01:33.6]} 22. Nf4 {[%clk
0:01:55.9]} 22... Rxe1+ {[%clk 0:01:27]} 23. Qxe1 {[%clk 0:01:56.8]} 23... Rxb4
{[%clk 0:00:52.9]} 24. cxb4 {[%clk 0:01:56.5]} 24... Qxd4+ {[%clk 0:00:53]} 25.
Qe3 {[%clk 0:01:42.9]} 25... Qxb4 {[%clk 0:00:35.8]} 26. Qxa7 {[%clk 0:01:37.8]}
26... Qe1+ {[%clk 0:00:35.4]} 27. Bf1 {[%clk 0:01:37.9]} 27... Bc6 {[%clk
0:00:30.9]} 28. Qc7 {[%clk 0:01:35.5]} 28... Ne4 {[%clk 0:00:17.5]} 29. Rf3
{[%clk 0:01:28.3]} 29... g5 {[%clk 0:00:09.6]} 30. Nd3 {[%clk 0:01:23.4]} 30...
Qd1 {[%clk 0:00:05.3]} 31. Rf5 {[%clk 0:01:03.3]} 31... Qc2 {[%clk 0:00:01.7]}
32. a7 {[%clk 0:00:59.9]} 1-0